fUSD/lending_fUSD_20260327
["ID","MTS","AMOUNT","RATE_DAILY","PERIOD"]
[418932299,1774572642779,-187.687,0.00021918,7]
[418932300,1774572642788,-264.0,0.00022,2]
[418932301,1774572642797,-410.0,0.00022,2]
[418932302,1774572642806,-220.0,0.00022,2]
[418932303,1774572642815,-176.4633,0.00022239,2]
[418932304,1774572642824,-165.7272,0.00022257,2]
[418932305,1774572642833,-165.7272,0.00022273,2]
[418932306,1774572642841,-176.4633,0.00022277,2]
[418932307,1774572642850,-221.45,0.00022302,2]
[418932308,1774572642859,-2902.02,0.00022432,30]
[418932309,1774572642867,-439.0,0.00022438,2]
[418932310,1774572642876,-154.3587693,0.00022512,2]
[418932311,1774572642885,-508.0,0.00022609,9]
[418932312,1774572642894,-264.0,0.00023,2]
[418932313,1774572642903,-410.0,0.00023,2]
[418932314,1774572642912,-220.0,0.00023,2]
[418932315,1774572642921,-1000.0,0.000231,2]
[418932316,1774572642930,-1345.0,0.00023462,2]
[418932317,1774572642938,-3516.0,0.00023462,2]
[418932318,1774572642948,-6011.0,0.00023462,2]
[418932319,1774572642957,-3763.0,0.00023462,2]
[418932320,1774572642965,-2467.0,0.00023462,2]
[418932321,1774572642975,-946.63,0.00023481,2]
[418932322,1774572642984,-1365.60177735,0.00023657,2]
[418932323,1774572642993,-264.0,0.00024,2]
[418932324,1774572643002,-410.0,0.00024,2]
[418932325,1774572643012,-153.0,0.00024,7]
[418932326,1774572643021,-153.0,0.00024,7]
[418932327,1774572643031,-220.0,0.00024,2]
[418932328,1774572643048,-216.73514063,0.00024067,2]
[418932329,1774572643074,-303.31155753,0.00024225,2]
[418932330,1774572643084,-161.66454254,0.00024225,2]
[418932331,1774572643094,-500.0,0.00024225,2]
[418932332,1774572643103,-164.7856168,0.00024225,2]
[418932333,1774572643113,-325.15,0.00024257,2]
[418932334,1774572643123,-18537.06117754,0.00024341,2]
[418932335,1774572643132,-221.45,0.00024465,2]
[418932336,1774572643142,-1000.0,0.00024658,2]
[418932337,1774572643152,-2000.0,0.000247,2]
[418932338,1774572643162,-10229.1591,0.000248,2]
[418932339,1774572643171,-15529.51767109,0.00024833,2]
[418932340,1774572643181,-2582.89,0.00024863,60]
[418932341,1774572643191,-267.71835712,0.000249,2]
[418932342,1774572643201,-1800.0,0.000249,9]
[418932343,1774572643210,-264.0,0.00025,2]
[418932344,1774572643221,-410.0,0.00025,2]
[418932345,1774572643231,-220.0,0.00025,2]
[418932346,1774572643241,-154.3587693,0.00025326,2]
[418932347,1774572643251,-508.0,0.00025478,12]
[418932348,1774572643261,-5505.64611638,0.000258,5]
[418932349,1774572643277,-27.35388362,0.000258,5]
[418932350,1774572643287,-264.0,0.00026,2]
[418932352,1774572643297,-410.0,0.00026,2]
[418932353,1774572643307,-220.0,0.00026,2]
[418932354,1774572643316,-1304.14611638,0.00026462,2]
[418932355,1774572643332,-40.85388362,0.00026462,2]
[418932356,1774572643341,-5280.49101764,0.00026462,2]
[418932357,1774572643352,-343.10411232,0.00026462,2]
[418932359,1774572645459,-289.53899997,0.00026462,2]
[418932360,1774572645470,-97.86587007,0.00026462,2]
[418932361,1774572645480,-1615.88412993,0.00026462,2]
[418932362,1774572645495,-533.77437812,0.00026462,2]
[418932363,1774572645513,-1187.61162915,0.00026462,2]
[418932364,1774572645961,-150.0,0.00024658,2]
[418932365,1774572645971,-425.7298628,0.00026462,2]
[418932366,1774572645980,-1416.09162753,0.00026462,2]
[418932370,1774573519773,17956.88,0.00017,60]
[418932371,1774573563037,10000.0,0.0001641,120]
[418932374,1774573675239,4279.6213,0.000161,120]
[418932384,1774573831641,-574.81083747,0.00011779,2]
[418932385,1774573831708,-248.07916253,0.00011779,2]
[418932386,1774573831719,-210.36831076,0.00012399,2]
[418932387,1774573831732,-612.52168924,0.00012399,2]
[418932388,1774573831743,-822.89,0.00013019,2]
[418932389,1774573831753,-822.89,0.00013638,2]
[418932390,1774573831764,-140.02923145,0.00013718,2]
[418932391,1774573831781,-10.97076855,0.00013718,2]
[418932392,1774573831791,-151.0,0.00013722,2]
[418932393,1774573831803,-226.86160595,0.0001399,2]
[418932394,1774573831863,-73.13839405,0.0001399,2]
[418932395,1774573831874,-300.0,0.0001399,2]
[418932396,1774573831884,-1200.0,0.0001399,2]
[418932397,1774573831895,-200.0,0.00013991,2]
[418932398,1774573831907,-151.0,0.00013991,2]
[418932399,1774573831918,-151.0,0.00013991,2]
[418932401,1774573831928,-151.0,0.00013991,2]
[418932404,1774573831939,-151.0,0.00013991,2]
[418932406,1774573831949,-151.0,0.00013991,2]
[418932408,1774573831959,-151.0,0.00013991,2]
[418932410,1774573831970,-151.0,0.00013991,2]
[418932412,1774573831981,-151.0,0.00013991,2]
[418932414,1774573831991,-151.0,0.00013991,2]
[418932416,1774573832001,-151.0,0.00013991,2]
[418932418,1774573832012,-1092.71757055,0.00013998,2]
[418932421,1774573832024,-3469.60737348,0.00013998,2]
[418932423,1774573832035,-500.0,0.00013998,2]
[418932425,1774573832044,-150.0,0.000142,2]
[418932427,1774573832054,-822.89,0.00014258,2]
[418932429,1774573832065,-200.0,0.00014539,2]
[418932431,1774573832075,-3240.0,0.0001461,2]
[418932433,1774573832085,-170.92,0.00014733,2]
[418932436,1774573832095,-1000.0,0.00014763,2]
[418932438,1774573832105,-822.89,0.00014878,2]
[418932440,1774573832115,-172.07838893,0.000149,2]
[418932442,1774573832126,-172.07838892,0.000149,2]
[418932444,1774573832135,-200.0,0.00015087,2]
[418932446,1774573832145,-822.89,0.00015498,2]
[418932447,1774573832155,-766.71771003,0.000155,3]
[418932448,1774573832165,-270.83356313,0.00015635,2]
[418932449,1774573832176,-2690.35512025,0.00016,2]
[418932450,1774573832188,-1950.17403298,0.00016,2]
[418932451,1774573832200,-2412.11522595,0.00016,2]
[418932453,1774573837788,-500.0,0.00015999,2]
[418932454,1774573837798,-500.0,0.00015999,2]
[418932455,1774573837808,-500.0,0.00015999,2]
[418932456,1774573837818,-500.0,0.00015999,2]
[418932457,1774573837828,-500.0,0.00015999,2]
[418932458,1774573837837,-500.0,0.00015999,2]
[418932459,1774573837847,-237.24518097,0.00015999,2]
[418932460,1774573837860,-262.75481903,0.00015999,2]
[418932461,1774573837869,-500.0,0.00015999,2]
[418932462,1774573837879,-500.0,0.00015999,2]
[418932463,1774573837888,-223.06048669,0.00015999,2]
[418932464,1774573837901,-276.93951331,0.00015999,2]
[418932465,1774573837911,-500.0,0.00015999,2]
[418932466,1774573837920,-500.0,0.00015999,2]
[418932467,1774573837929,-500.0,0.00015999,2]
[418932468,1774573837939,-500.0,0.00015999,2]
[418932469,1774573837949,-500.0,0.00015999,2]
[418932470,1774573837959,-500.0,0.00015999,2]
[418932471,1774573837968,-500.0,0.00015999,2]
[418932472,1774573837978,-500.0,0.00015999,2]
[418932473,1774573837987,-500.0,0.00015999,2]
[418932474,1774573837997,-500.0,0.00015999,2]
[418932475,1774573838006,-500.0,0.00015999,2]
[418932476,1774573838016,-500.0,0.00015999,2]
[418932477,1774573838025,-225.00581606,0.00015999,2]
[418932478,1774573838035,-500.0,0.00015999,2]
[418932479,1774573838045,-500.0,0.00015999,2]
[418932480,1774573838054,-500.0,0.00015999,2]
[418932481,1774573838065,-500.0,0.00015999,2]
[418932482,1774573838075,-721.41691797,0.00016,2]
[418932483,1774573838087,-538.81673325,0.00016,2]
[418932484,1774573838103,-151.0,0.00015489,2]
[418932485,1774573838113,-849.000001,0.00016,2]
[418932486,1774573838180,-3221.31400424,0.00016,2]
[418932488,1774573840011,-8610.49342382,0.00016,2]
[418932489,1774573840770,-1067.42379196,0.00016,2]
[418932490,1774573840782,-647.51,0.00016,2]
[418932491,1774573840796,-264.56333182,0.00016,2]
[418932526,1774573846042,-11256.2656276,0.00016,2]
[418932531,1774574046095,206.3629,0.00016,120]
[418932534,1774575031929,-250.0,0.00013,2]
[418932535,1774575031938,-161.74454302,0.00013111,2]
[418932537,1774575031947,-509.0,0.00013111,2]
[418932538,1774575031957,-150.4644421,0.00013782,2]
[418932540,1774575032170,-11.28010092,0.00013782,2]
[418932541,1774575032179,-161.74454302,0.00013782,2]
[418932542,1774575032189,-151.0,0.00013945,2]
[418932543,1774575032198,-22.99875606,0.00013946,2]
[418932544,1774575032210,-128.00124394,0.00013946,2]
[418932545,1774575032220,-151.0,0.00013966,2]
[418932546,1774575032229,-200.0,0.00014193,2]
[418932547,1774575032239,-300.0,0.00014299,2]
[418932548,1774575032248,-1200.0,0.00014299,2]
[418932549,1774575032258,-300.0,0.00014299,2]
[418932550,1774575032268,-233.01,0.000143,2]
[418932551,1774575032277,-2500.0,0.000143,2]
[418932552,1774575032286,-2500.0,0.000143,2]
[418932553,1774575032295,-1878.82799848,0.000143,2]
[418932554,1774575032307,-535.20832,0.000143,2]
[418932555,1774575032318,-85.96368152,0.000143,2]
[418932556,1774575032327,-2500.0,0.000143,2]
[418932557,1774575032336,-2032.25005656,0.000143,2]
[418932558,1774575032348,-467.74994344,0.000143,2]
[418932559,1774575032357,-300.0,0.000143,2]
[418932560,1774575032366,-300.0,0.000143,2]
[418932561,1774575032376,-300.0,0.000143,2]
[418932563,1774575032385,-300.0,0.000143,2]
[418932565,1774575032394,-300.0,0.000143,2]
[418932567,1774575032404,-600.0,0.000143,2]
[418932569,1774575032413,-600.0,0.000143,2]
[418932571,1774575032422,-600.0,0.000143,2]
[418932573,1774575032431,-600.0,0.000143,2]
[418932575,1774575032440,-600.0,0.000143,2]
[418932577,1774575032449,-177.16,0.00014335,2]
[418932579,1774575032458,-2500.0,0.0001441,2]
[418932581,1774575032467,-1500.0,0.00014431,2]
[418932583,1774575032476,-2416.7287428,0.000145,2]
[418932585,1774575032486,-151.0,0.00014507,2]
[418932587,1774575032495,-151.0,0.00014507,2]
[418932589,1774575032504,-372.61,0.00014509,2]
[418932591,1774575032513,-500.0,0.00014509,2]
[418932593,1774575032522,-500.0,0.00014509,2]
[418932595,1774575032531,-500.0,0.00014509,2]
[418932597,1774575032540,-568.64936411,0.00014509,2]
[418932599,1774575032549,-500.0,0.00014509,2]
[418932601,1774575032558,-500.0,0.00014509,2]
[418932603,1774575032567,-233.01,0.00014574,2]
[418932605,1774575032576,-3528.16194965,0.00014719,2]
[418932608,1774575032587,-9835.566751,0.00014719,2]
[418932611,1774575038438,-500.0,0.00014509,2]
[418932612,1774575038448,-758.6368636,0.00014719,2]
[418932613,1774575038459,-150.0,0.00014819,2]
[418932614,1774575038469,-9.75135969,0.00014848,2]
[418932615,1774575038480,-223.27366276,0.00014848,2]
[418932616,1774575038490,-222.99620776,0.00014959,2]
[418932617,1774575038501,-218.00379224,0.00014959,2]
[418932618,1774575038511,-575.66270743,0.00015082,2]
[418932630,1774575040233,-653.00355919,0.0001441,2]
[418932631,1774575040247,-1211.11134081,0.0001441,2]
[418932632,1774575040258,-151.0,0.00014876,2]
[418932634,1774575040270,-24.59365914,0.00015082,2]
[418932636,1774575040284,-601.57196106,0.00015082,2]
[418932637,1774575040297,-3349.60167237,0.00015082,2]
[418932638,1774575040306,-150.0,0.000152,2]
[418932639,1774575040316,-1283.56190763,0.00015205,2]
[418932640,1774575040386,-8716.43809237,0.00015205,2]
[418932641,1774575040396,-88.33688236,0.0001589,2]
[418932642,1774575040409,-1911.66311764,0.0001589,2]
[418932643,1774575040420,-7035.55567709,0.000159,2]
[418932644,1774575040433,-4787.44507172,0.000159,2]
[418932645,1774575040443,-775.0079336,0.00015928,2]
[418932646,1774575040453,-165.3905543,0.00015928,2]
[418932647,1774575040463,-165.735617,0.00015997,2]
[418932648,1774575040475,-336.74955287,0.00015999,2]
[418932649,1774575040485,-500.0,0.00015999,2]
[418932650,1774575040495,-500.0,0.00015999,2]
[418932651,1774575040504,-265.80616744,0.00015999,2]
[418932652,1774575040514,-500.0,0.00015999,2]
[418932653,1774575040524,-402.65002401,0.00015999,2]
[418932654,1774575040534,-500.8617481,0.00015999,2]
[418932655,1774575040544,-44.13719558,0.00015999,2]
[418932656,1774575040556,-455.86280442,0.00015999,2]
[418932657,1774575040566,-500.0,0.00015999,2]
[418932658,1774575040575,-500.0,0.00015999,2]
[418932659,1774575040586,-500.0,0.00015999,2]
[418932660,1774575040595,-425.09447877,0.00015999,2]
[418932661,1774575040605,-419.93842742,0.00015999,2]
[418932662,1774575040615,-500.94188563,0.00015999,2]
[418932663,1774575040625,-500.0,0.00015999,2]
[418932664,1774575040634,-5275.71106528,0.00016,2]
[418932665,1774575040647,-277.1987,0.00016,2]
[418932667,1774575043107,-4362.25192,0.00016,2]
[418932673,1774575043263,-5038.18168835,0.00016,2]
[418932674,1774575043276,-931.86771549,0.00016,2]
[418932675,1774575043634,-836.95055176,0.00016,2]
[418932676,1774575043646,-41049.2077956,0.00016,2]
[418932677,1774575045947,-2048.50000002,0.00016,2]
[418932678,1774575046307,-11718.36974591,0.00016,2]
[418932680,1774575046481,-35573.88042954,0.00016,2]
[418932682,1774575046492,-200.0000001,0.00016,2]
[418932684,1774575046502,-153.0,0.00016,2]
[418932686,1774575046513,-1156.18765872,0.00016,2]
[418932688,1774575046523,-151.0,0.00016,2]
[418932689,1774575046533,-151.0,0.00016,2]
[418932690,1774575046543,-151.0,0.00016,2]
[418932691,1774575046553,-151.0,0.00016,2]
[418932692,1774575046563,-152.0,0.00016,2]
[418932693,1774575046575,-180.65887883,0.00016,2]
[418932694,1774575046585,-152.06771121,0.00016,2]
[418932695,1774575046595,-500.0,0.00016,2]
[418932696,1774575046605,-200.0,0.00016,2]
[418932697,1774575046615,-895.0,0.00016111,2]
[418932698,1774575046625,-737.0,0.00016111,2]
[418932699,1774575046635,-822.89,0.00016118,2]
[418932700,1774575046645,-7585.45020132,0.000162,5]
[418932702,1774575047124,-3683.38245296,0.000162,5]
[418932703,1774575047134,-158.39,0.00016288,2]
[418932704,1774575047144,-151.0,0.0001641,2]
[418932705,1774575047154,-177.16,0.00016498,2]
[418932706,1774575047163,-822.89,0.00016738,2]
[418932707,1774575047172,-509.0,0.00016827,5]
[418932708,1774575047181,-1024.21,0.0001691,2]
[418932709,1774575047191,-1978.12,0.00016941,2]
[418932710,1774575047199,-152.54442004,0.00017,2]
[418932711,1774575047208,-822.89,0.00017358,2]
[418932712,1774575047217,-221.76,0.000175,2]
[418932713,1774575047227,-153.725362,0.00017502,2]
[418932714,1774575047236,-324.07,0.0001751,2]
[418932715,1774575047245,-211.92,0.0001751,2]
[418932716,1774575047254,-5039.96,0.00017728,2]
[418932717,1774575047264,-775.0079336,0.00017828,2]
[418932718,1774575047273,-158.39,0.00017916,2]
[418932719,1774575047282,-822.89,0.00017978,2]
[418932720,1774575047291,-14122.36556422,0.00018072,2]
[418932721,1774575047301,-822.89,0.00018598,2]
[418932722,1774575047310,-177.16,0.00018661,2]
[418932723,1774575047319,-165.3905543,0.00018929,2]
[418932724,1774575047329,-765.50027559,0.00019,120]
[418932725,1774575047338,-500.0,0.00019121,2]
[418932726,1774575047348,-500.0,0.00019121,2]
[418932727,1774575047358,-11823.00074874,0.00019122,2]
[418932728,1774575047367,-822.89,0.00019218,2]
[418932729,1774575047376,-158.39,0.00019545,2]
[418932730,1774575047385,-775.0079336,0.00019728,2]
[418932731,1774575047394,-166.66,0.00019812,2]
[418932732,1774575047404,-822.89,0.00019838,2]
[418932733,1774575047414,-151.0,0.0002,2]
[418932734,1774575047424,-3418.67,0.0002,30]
[418932735,1774575047433,-200.0,0.0002,10]
[418932736,1774575047443,-150.0,0.0002,20]
[418932737,1774575047452,-300.0,0.000201,10]
[418932738,1774575047461,-324.07,0.00020137,3]
[418932739,1774575047471,-166.66,0.00020229,2]
[418932740,1774575047479,-822.89,0.00020458,2]
[418932741,1774575047489,-509.0,0.00020543,8]
[418932742,1774575047499,-500.0,0.00020635,2]
[418932743,1774575047509,-500.0,0.00020635,2]
[418932744,1774575047519,-503.55073109,0.00020635,2]
[418932745,1774575047528,-500.0,0.00020635,2]
[418932746,1774575047537,-8063.93,0.00020635,2]
[418932747,1774575047547,-166.66,0.00020647,2]
[418932748,1774575047556,-1346.62,0.00020688,2]
[418932749,1774575047565,-6011.0,0.00020688,2]
[418932750,1774575047574,-3764.0,0.00020688,2]
[418932751,1774575047583,-177.16,0.00020824,2]
[418932752,1774575047592,-2000.0,0.00020867,2]
[418932753,1774575047601,-166.66,0.00021064,2]
[418932754,1774575047610,-822.89,0.00021077,2]
[418932755,1774575047619,-158.39,0.00021174,2]
[418932756,1774575047628,-5163.9,0.00021416,2]
[418932757,1774575047637,-7725.05309572,0.00021426,2]
[418932758,1774575047649,-6397.3124685,0.00021426,2]
[418932759,1774575047658,-500.50074424,0.00021473,2]
[418932760,1774575047667,-163.56585806,0.00021473,2]
[418932761,1774575047676,-166.66,0.00021481,2]
[418932762,1774575047685,-775.0079336,0.00021628,2]
[418932763,1774575047695,-822.89,0.00021697,2]
[418932764,1774575047704,-500.0,0.0002187,2]
[418932765,1774575047713,-166.66,0.00021898,2]
[418932766,1774575047722,-165.3905543,0.00021929,2]
[418932767,1774575047731,-151.0,0.00022,2]
[418932768,1774575047740,-165.0,0.00022,2]
[418932769,1774575047750,-198.0,0.00022,2]
[418932770,1774575047758,-308.0,0.00022,2]
[418932771,1774575047767,-587.61,0.00022256,2]
[418932772,1774575047776,-822.89,0.00022317,2]
[418932773,1774575047785,-10273.70189315,0.00022344,2]
[418932774,1774575047813,-807.03137011,0.00022344,2]
[418932775,1774575047825,-742.26748548,0.00022344,2]
[418932776,1774575047834,-2928.83,0.00022431,30]
[418932777,1774575047850,-154.3587693,0.00022654,2]
[418932778,1774575047859,-158.39,0.00022803,2]
[418932779,1774575047868,-2000.0,0.000229,2]
[418932780,1774575047877,-822.89,0.00022937,2]
[418932781,1774575047886,-177.16,0.00022987,2]
[418932782,1774575047896,-165.0,0.00023,2]
[418932783,1774575047904,-198.0,0.00023,2]
[418932784,1774575047913,-308.0,0.00023,2]
[418932785,1774575047923,-2000.0,0.00023476,2]
[418932786,1774575047932,-822.89,0.00023557,2]
[418932787,1774575047942,-324.07,0.00023639,3]
[418932788,1774575047951,-317.87,0.00023639,3]
[418932789,1774575047959,-1345.0,0.00023688,2]
[418932790,1774575047968,-6011.0,0.00023688,2]
[418932791,1774575047978,-3764.0,0.00023688,2]
[418932792,1774575047987,-1978.12,0.00023718,2]
[418932793,1774575047996,-200.0,0.0002397,2]
[418932794,1774575048005,-165.0,0.00024,2]
[418932795,1774575048014,-198.0,0.00024,2]
[418932796,1774575048023,-308.0,0.00024,2]
[418932797,1774575048032,-2094.876,0.00024154,6]
[418932798,1774575048041,-183.872,0.00024154,6]
[418932799,1774575048060,-509.0,0.00024259,11]
[418932800,1774575048071,-1000.0,0.00024333,2]
[418932801,1774575048081,-439.0,0.00024431,5]
[418932802,1774575048091,-158.39,0.00024431,2]
[418932803,1774575048100,-150.0,0.00024658,2]
[418932804,1774575048110,-14122.36556422,0.00024779,2]
[418932805,1774575048120,-2522.47,0.00024863,60]
[418932806,1774575048130,-151.0,0.00025,2]
[418932807,1774575048139,-504.4,0.00025,5]
[418932808,1774575048149,-165.0,0.00025,2]
[418932809,1774575048159,-198.0,0.00025,2]
[418932810,1774575048169,-308.0,0.00025,2]
[418932811,1774575048179,-177.16,0.0002515,2]
[418932812,1774575048188,-3329.75,0.00025188,2]
[418932813,1774575048198,-2000.0,0.000254,2]
[418932814,1774575048207,-5163.9,0.00025557,2]
[418932815,1774575048217,-11823.00074874,0.00025567,2]
[418932816,1774575048228,-150.0,0.0002589,2]
[418932817,1774575048237,-165.0,0.00026,2]
[418932818,1774575048247,-198.0,0.00026,2]
[418932819,1774575048256,-308.0,0.00026,2]
[418932820,1774575048265,-1797.1,0.00026,2]
[418932821,1774575048274,-1797.1,0.00026,2]
[418932822,1774575048284,-2291.64,0.00026,2]
[418932823,1774575048294,-2000.0,0.00026084,2]
[418932824,1774575048304,-39024.12943226,0.000262,2]
[418932836,1774576232055,-267.37735194,0.00012948,2]
[418932837,1774576232067,-42.62264806,0.00012948,2]
[418932838,1774576232076,-180.18,0.00012948,2]
[418932839,1774576232086,-477.55885538,0.00013111,2]
[418932840,1774576232160,-33.44114462,0.00013111,2]
[418932841,1774576232170,-1278.92098356,0.00013775,2]
[418932842,1774576232180,-877.3259,0.0001421,2]
[418932843,1774576232190,-3455.30063938,0.0001421,2]
[418932844,1774576232201,-326.03172292,0.0001421,2]
[418932845,1774576232212,-3248.41634028,0.0001421,2]
[418932846,1774576232225,-706.82415317,0.0001421,2]
[418932847,1774576232242,-1309.68764366,0.0001421,2]
[418932848,1774576232253,-951.1048631,0.0001421,2]
[418932849,1774576232281,-2714.78175118,0.0001421,2]
[418932850,1774576232292,-343.29292514,0.0001421,2]
[418932851,1774576232325,-1434.41726117,0.0001421,2]
[418932852,1774576232335,-1420.50337383,0.00014222,2]
[418932853,1774576232347,-459.07834486,0.00014222,2]
[418932855,1774576232380,-864.06206667,0.00014222,2]
[418932857,1774576232392,-424.84285358,0.00014222,2]
[418932859,1774576232403,-3144.51543592,0.00014222,2]
[418932915,1774576240989,-20012.65425691,0.0001411,2]
[418932926,1774576243397,-20503.50605604,0.0001411,2]
[418932927,1774576243505,-940.06141201,0.0001411,2]
[418932928,1774576243559,-443.4506406,0.0001411,2]
[418932929,1774576246484,-1225.04008768,0.0001411,2]
[418932940,1774577432297,-254.14013485,9.5e-05,3]
[418932941,1774577432310,-369.98931999,9.5e-05,3]
[418932942,1774577432351,-3016.37873719,9.5e-05,3]
[418932943,1774577432406,-1635.36487997,9.5e-05,3]
[418932944,1774577432419,-1109.70955247,9.5e-05,3]
[418932945,1774577432432,-2424.07895351,9.5e-05,3]
[418932947,1774577432567,-257.8752,9.5e-05,3]
[418932975,1774577438417,-867.29626824,9.5e-05,3]
[418932976,1774577438579,-2615.92995068,9.5e-05,3]
[418932977,1774577438632,-1441.65226089,9.5e-05,3]
[418933001,1774577441101,-1649.83054606,9.5e-05,3]
[418933002,1774577441208,-8804.77497473,9.5e-05,3]
[418933003,1774577441220,-8947.21879473,9.5e-05,3]
[418933004,1774577441232,-8943.78386462,9.5e-05,3]
[418933005,1774577441243,-9077.54866152,9.5e-05,3]
[418933014,1774577443989,-1788.0,9.5e-05,3]
[418933019,1774577446305,-500.0,9.5e-05,3]
[418933020,1774577446317,-17357.58521366,9.5e-05,3]
[418933021,1774577446326,-512.0,0.00013111,2]
[418933022,1774577446335,-313.0,0.00013111,2]
[418933023,1774577446344,-4977.32580779,0.0001391,2]
[418933090,1774578631670,-216.76,0.00012154,2]
[418933091,1774578631682,-63.87250004,0.00013111,2]
[418933092,1774578631721,-447.12749996,0.00013111,2]
[418933093,1774578631732,-252.5159786,0.00013369,2]
[418933094,1774578631743,-3066.96053573,0.0001408,2]
[418933095,1774578631778,-462.46160238,0.0001408,2]
[418933096,1774578631790,-580.48689927,0.0001408,2]
[418933103,1774578637833,-6901.30536174,0.0001408,2]
[418933125,1774578645849,-1043.26295413,0.0001408,2]
[418933126,1774578645961,-620.335002,0.0001408,2]
[418933127,1774578646277,-1930.59892602,0.0001408,2]
[418933128,1774578646298,-1269.81740908,0.0001408,2]
[418933129,1774578646308,-185.12,0.00014222,2]
[418933130,1774578646318,-76.11187092,0.00014222,2]
[418933131,1774578646330,-715.2085,0.00014222,2]
[418933133,1774578646341,-895.42462908,0.00014222,2]
[418933135,1774578646350,-160.73957092,0.00014419,2]
[418933137,1774578646362,-8.14610549,0.00014419,2]
[418933139,1774578646371,-151.0,0.00014594,2]
[418933141,1774578646381,-1516.83,0.00014874,2]
[418933143,1774578646390,-326.02389451,0.00014878,2]
[418933145,1774578646401,-7599.30750034,0.00014878,2]
[418933147,1774578646410,-285.37907128,0.00014878,2]
[418933161,1774579831877,-486.40903249,0.00011985,2]
[418933162,1774579831931,-1324.61665803,0.00011985,2]
[418933163,1774579831985,-287.06431718,0.00011985,2]
[418933164,1774579831999,-894.93568282,0.00011985,2]
[418933165,1774579832010,-18447.18193658,0.00011985,2]
[418933166,1774579832020,-197.1775092,0.00011985,2]
[418933167,1774579832029,-6561.2561105,0.00011985,2]
[418933168,1774579832038,-511.0,0.00013111,2]
[418933169,1774579832047,-150.0,0.0001353,2]
[418933170,1774579832056,-4269.47814936,0.00013562,2]
[418933199,1774579837882,-1656.23874578,0.00013562,2]
[418933200,1774579838041,-581.1401268,0.00013562,2]
[418933201,1774579838150,-54.39908856,0.00013562,2]
[418933202,1774579838160,-197.1775092,0.0001358,2]
[418933203,1774579838170,-89.06564982,0.0001358,2]
[418933204,1774579838182,-4912.41113677,0.0001358,2]
[418933248,1774579840091,-1992.00461183,0.0001358,2]
[418933250,1774579840103,-1407.52319047,0.0001358,2]
[418933252,1774579840114,-336.7928466,0.0001358,2]
[418933254,1774579840665,-1810.91461116,0.0001358,2]
[418933255,1774579840680,-378.87241909,0.0001358,2]
[418933269,1774579843442,-10512.62316136,0.0001358,2]
[418933270,1774579843452,-151.0,0.00013581,2]
[418933271,1774579843462,-153.460124,0.00013581,2]
[418933272,1774579843472,-151.0,0.00013581,2]
[418933273,1774579843482,-151.0,0.00013581,2]
[418933274,1774579843491,-614.677955,0.00013581,2]
[418933275,1774579843501,-614.677955,0.00013581,2]
[418933276,1774579843511,-614.677955,0.00013581,2]
[418933277,1774579843521,-614.677955,0.00013581,2]
[418933278,1774579843530,-468.297215,0.00013581,2]
[418933279,1774579843540,-468.297215,0.00013581,2]
[418933280,1774579843549,-468.297215,0.00013581,2]
[418933282,1774579843559,-468.297215,0.00013581,2]
[418933284,1774579843568,-151.0,0.00013581,2]
[418933286,1774579843577,-152.500361,0.00013581,2]
[418933288,1774579843587,-1193.796162,0.00013581,2]
[418933290,1774579843596,-1193.796162,0.00013581,2]
[418933293,1774579843606,-1193.796162,0.00013581,2]
[418933294,1774579843615,-1193.796162,0.00013581,2]